fUSD/lending_fUSD_20251113
["ID","MTS","AMOUNT","RATE_DAILY","PERIOD"]
[393891045,1763072740385,999.0,0.00016749,3]
[393891048,1763072759399,7737.74620754,8e-05,2]
[393891050,1763072811803,68.07036738,0.000162,5]
[393891051,1763072811829,10000.01,0.000162,5]
[393891052,1763072811853,10000.01,0.000162,5]
[393891053,1763072811884,2356.46320831,0.000162,5]
[393891066,1763072893040,1917.08457606,0.0001,2]
[393891076,1763072904705,2714.49884901,0.0001,2]
[393891083,1763072914185,3011.96336662,0.00015,3]
[393891084,1763072914210,10000.01,0.00015,3]
[393891085,1763072914235,10000.01,0.00015,3]
[393891086,1763072914259,10000.01,0.00015,3]
[393891087,1763072914283,10000.01,0.00015,3]
[393891088,1763072914310,10000.01,0.00015,3]
[393891089,1763072914334,10000.01,0.00015,3]
[393891090,1763072914360,10000.01,0.00015,3]
[393891091,1763072914383,10000.01,0.00015,3]
[393891092,1763072914406,10000.01,0.00015,3]
[393891093,1763072914433,15242.14179028,0.00015,3]
[393891094,1763072914848,8293.31668216,0.0001,2]
[393891095,1763072914937,11832.39970204,0.00015,2]
[393891102,1763072917823,1343.7809378,0.00013699,2]
[393891185,1763073031435,-300.0,0.00016999,2]
[393891186,1763073031450,-575.20563942,0.00016999,2]
[393891187,1763073031464,-624.79436058,0.00016999,2]
[393891188,1763073031477,-300.0,0.00016999,2]
[393891189,1763073031492,-74.20563942,0.00017,2]
[393891190,1763073031505,-289.96440231,0.00017,2]
[393891191,1763073031520,-10832.35481481,0.00017,2]
[393891192,1763073031533,-16743.31527785,0.00017,2]
[393891193,1763073031548,-11233.43597388,0.00017,2]
[393891194,1763073031562,-300.0,0.00017,2]
[393891195,1763073031574,-1800.0,0.00017,6]
[393891196,1763073031587,-500.0,0.00017026,2]
[393891197,1763073031600,-300.0,0.00017034,2]
[393891198,1763073031612,-300.0,0.00017034,2]
[393891199,1763073031624,-300.0,0.00017034,2]
[393891200,1763073031635,-3600.0,0.000171,6]
[393891201,1763073031647,-1200.0,0.00017181,2]
[393891202,1763073031658,-550.0,0.00017183,2]
[393891203,1763073031672,-2784.7736,0.00017184,2]
[393891204,1763073031684,-2500.0,0.00017184,2]
[393891205,1763073031696,-234.6117,0.00017184,2]
[393891206,1763073031707,-546.8033,0.00017184,2]
[393891207,1763073031719,-1258.3172,0.00017184,2]
[393891208,1763073031730,-155.55984889,0.00017187,2]
[393891210,1763073031740,-833.78869321,0.000172,2]
[393891212,1763073031750,-3374.92921894,0.000172,6]
[393891214,1763073031764,-2025.07078106,0.000172,6]
[393891217,1763073031775,-854.22797835,0.00017228,2]
[393891219,1763073031788,-500.0,0.00017273,2]
[393891221,1763073031801,-500.0,0.00017273,2]
[393891224,1763073031811,-500.0,0.00017273,2]
[393891225,1763073031821,-431.70775828,0.00017273,2]
[393891226,1763073031830,-500.0,0.00017273,2]
[393891227,1763073031840,-507.19756014,0.00017273,2]
[393891228,1763073031851,-500.0,0.00017273,2]
[393891229,1763073031862,-151.0,0.00017274,2]
[393891230,1763073031875,-151.0,0.00017274,2]
[393891232,1763073031886,-151.0,0.00017274,2]
[393891234,1763073031896,-151.0,0.00017274,2]
[393891236,1763073031906,-151.0,0.00017274,2]
[393891238,1763073031916,-151.0,0.00017274,2]
[393891240,1763073031929,-151.0,0.00017274,2]
[393891241,1763073031943,-151.0,0.00017274,2]
[393891242,1763073031953,-151.0,0.00017274,2]
[393891243,1763073031964,-151.0,0.00017274,2]
[393891244,1763073031975,-151.0,0.00017274,2]
[393891245,1763073031986,-151.0,0.00017274,2]
[393891246,1763073031997,-151.0,0.00017274,2]
[393891247,1763073032010,-151.0,0.00017274,2]
[393891248,1763073032021,-151.0,0.00017274,2]
[393891249,1763073032032,-151.0,0.00017274,2]
[393891250,1763073032043,-151.0,0.00017274,2]
[393891251,1763073032054,-151.0,0.00017274,2]
[393891252,1763073032065,-151.0,0.00017274,2]
[393891253,1763073032077,-151.0,0.00017274,2]
[393891254,1763073032089,-151.0,0.00017274,2]
[393891255,1763073032101,-151.0,0.00017274,2]
[393891256,1763073032112,-151.0,0.00017274,2]
[393891257,1763073032124,-151.0,0.00017274,2]
[393891258,1763073032135,-151.0,0.00017274,2]
[393891259,1763073032146,-151.0,0.00017274,2]
[393891260,1763073032158,-151.0,0.00017274,2]
[393891261,1763073032169,-315.49,0.00017274,2]
[393891262,1763073032180,-239.78,0.00017274,3]
[393891263,1763073032191,-500.0,0.00017283,2]
[393891264,1763073032202,-500.0,0.00017283,2]
[393891265,1763073032213,-500.0,0.00017283,2]
[393891266,1763073032225,-533.78,0.00017283,2]
[393891267,1763073032235,-500.0,0.00017283,2]
[393891268,1763073032247,-500.0,0.00017283,2]
[393891269,1763073032259,-176.0774614,0.00017283,2]
[393891270,1763073032270,-500.0,0.00017283,2]
[393891271,1763073032282,-632.88794946,0.00017283,2]
[393891272,1763073032293,-500.0,0.00017283,2]
[393891273,1763073032305,-500.0,0.00017283,2]
[393891274,1763073032319,-14209.56888229,0.00017284,2]
[393891275,1763073032641,-239751.8815566,0.00017284,2]
[393891276,1763073032674,-11197.49070691,0.00017284,2]
[393891280,1763073037471,-44922.83688919,0.00017284,2]
[393891281,1763073037482,-36125.57380998,0.00017284,2]
[393891282,1763073037493,-2416.06200004,0.00017284,2]
[393891283,1763073037505,-7851.26138464,0.00017284,2]
[393891284,1763073037517,-2524.94000031,0.00017284,2]
[393891285,1763073037528,-34589.91306365,0.00017284,2]
[393891286,1763073037603,-1132.93716267,0.00017284,2]
[393891287,1763073037649,-25277.53454372,0.00017284,2]
[393891288,1763073037658,-833.78869317,0.00017287,2]
[393891289,1763073037668,-7200.0,0.000173,6]
[393891290,1763073037677,-854.22797832,0.00017307,2]
[393891291,1763073037686,-2114.92,0.00017328,2]
[393891292,1763073037695,-833.78869317,0.00017374,2]
[393891293,1763073037705,-854.22797832,0.00017385,2]
[393891294,1763073037714,-155.55984887,0.00017386,2]
[393891295,1763073037724,-7066.23365544,0.000174,6]
[393891296,1763073037735,-1001.0933841,0.000174,6]
[393891297,1763073037746,-932.67296046,0.000174,6]
[393891298,1763073037755,-833.78869317,0.00017461,2]
[393891299,1763073037765,-854.22797832,0.00017464,2]
[393891300,1763073037774,-584.94079217,0.00017464,2]
[393891301,1763073037783,-152.90894016,0.00017464,2]
[393891302,1763073037792,-4170.87483849,0.00017465,2]
[393891320,1763073039466,-941.19737826,0.00017465,2]
[393891321,1763073039478,-9907.21093007,0.00017465,2]
[393891322,1763073039489,-15653.5122472,0.00017465,2]
[393891323,1763073039499,-1800.0,0.000175,6]
[393891324,1763073039508,-854.22797832,0.00017542,2]
[393891325,1763073039518,-833.78869317,0.00017548,2]
[393891326,1763073039528,-315.49,0.00017548,2]
[393891327,1763073039537,-155.55984887,0.00017585,2]
[393891328,1763073039546,-1780.2119,0.00017599,2]
[393891329,1763073039556,-1000.0,0.00017599,2]
[393891330,1763073039565,-1800.0,0.000176,6]
[393891331,1763073039574,-854.22797832,0.00017621,2]
[393891332,1763073039584,-833.78869317,0.00017634,2]
[393891333,1763073039593,-854.22797832,0.00017699,2]
[393891334,1763073039603,-1800.0,0.000177,6]
[393891335,1763073039612,-833.78869317,0.00017721,2]
[393891336,1763073039621,-162.77,0.00017772,2]
[393891337,1763073039630,-854.22797832,0.00017778,2]
[393891338,1763073039639,-155.55984887,0.00017783,2]
[393891339,1763073039647,-1800.0,0.000178,6]
[393891340,1763073039656,-150.0,0.00017801,2]
[393891341,1763073039666,-150.0,0.00017802,2]
[393891342,1763073039675,-833.78869317,0.00017808,2]
[393891343,1763073039684,-500.0,0.00017809,2]
[393891344,1763073039693,-2114.92,0.0001781,2]
[393891345,1763073039702,-1000.0,0.00017821,2]
[393891346,1763073039711,-504.43139356,0.00017821,2]
[393891347,1763073039720,-756.62604662,0.00017821,2]
[393891348,1763073039729,-315.49,0.00017822,2]
[393891349,1763073039738,-854.22797832,0.00017856,2]
[393891350,1763073039748,-1811.0,0.00017861,2]
[393891351,1763073039757,-833.78869317,0.00017895,2]
[393891352,1763073039768,-2182.0,0.000179,6]
[393891353,1763073039777,-1811.0,0.00017904,2]
[393891354,1763073039786,-291.27559743,0.00017904,2]
[393891355,1763073039797,-1519.72440257,0.00017904,2]
[393891356,1763073039807,-854.22797832,0.00017935,2]
[393891357,1763073039816,-1811.0,0.00017951,2]
[393891358,1763073039826,-2395.36521483,0.00017982,2]
[393891359,1763073039835,-155.55984887,0.00017982,2]
[393891360,1763073039844,-833.78869317,0.00017982,2]
[393891361,1763073039853,-369.36660514,0.00017997,2]
[393891362,1763073039863,-1541641.86070173,0.00018,2]
[393891363,1763073039882,-476.33,0.00018,2]
[393891364,1763073039893,-1558.9901465,0.00018,2]
[393891366,1763073039904,-2363.77976898,0.00018,2]
[393891368,1763073039915,-39314.59983548,0.00018,2]
[393891371,1763073039934,-511.87051959,0.00018,2]
[393891373,1763073039946,-1309.55009684,0.00018,2]
[393891375,1763073039957,-1865.06417053,0.00018,2]
[393891377,1763073039971,-3999.19441267,0.00018,2]
[393891378,1763073039982,-473.50602705,0.00018,2]
[393891379,1763073039993,-4995.70387154,0.00018,2]
[393891380,1763073040004,-3981.03319095,0.00018,2]
[393891381,1763073040018,-574.57725848,0.00018,2]
[393891383,1763073040059,-730.0,0.00018,2]
[393891385,1763073040070,-638.38951432,0.00018,2]
[393891387,1763073040081,-44306.02621086,0.00018,2]
[393891390,1763073040092,-544.90783643,0.00018,2]
[393891393,1763073040117,-88425.96477793,0.00018,2]
[393891395,1763073040128,-1595.042449,0.00018,2]
[393891463,1763073042629,-996925.97744637,0.00018,2]
[393891495,1763073042919,-21369.1918391,0.00018,2]
[393891506,1763073043012,-1015.95344153,0.00018,2]
[393891508,1763073043025,-36274.69467383,0.00018,2]
[393891511,1763073043038,-26168.74500509,0.00018,2]
[393891513,1763073043053,-3200.0,0.00018,2]
[393891515,1763073043064,-5903.84954234,0.00018,2]
[393891518,1763073043075,-844.9023168,0.00018,2]
[393891521,1763073043102,-37002.00628406,0.00018,2]
[393891524,1763073043113,-99436.91168487,0.00018,2]
[393891526,1763073043123,-809.46,0.00018,2]
[393891528,1763073043135,-3056.44712542,0.00018,2]
[393891551,1763073043335,-412.05845751,0.00018,2]
[393891555,1763073043351,-1015.39168649,0.00018,2]
[393891565,1763073043391,-1827.93158466,0.00018,2]
[393891825,1763073045838,-286.66,0.00018,2]
[393891827,1763073045850,-1184.00002,0.00018,2]
[393891829,1763073045861,-3534.9999997,0.00018,2]
[393891841,1763073045957,-390.43581403,0.00018,2]
[393891858,1763073101441,186.89858413,0.00016899,2]
[393891866,1763073160458,161.3282,0.000169,2]
[393891957,1763073361955,624.0,0.0004099,30]
[393892123,1763073610385,-300.0,0.00016978,2]
[393892124,1763073610417,-1200.0,0.00016978,2]
[393892125,1763073610448,-3086.9245418,0.00016979,2]
[393892126,1763073610478,-155.55984887,0.00016979,2]
[393892127,1763073610513,-236.71123338,0.00016979,2]
[393892128,1763073612836,-41.6187519,0.00016979,2]
[393892129,1763073667655,5780.054702,7.945e-05,2]
[393892130,1763073677085,-9658.3912481,0.00016981,2]
[393892131,1763073705685,177.62,0.00013251,2]
[393892132,1763073726413,-3897.50598566,0.00016981,2]
[393892133,1763073726442,-300.0,0.00016982,2]
[393892134,1763073726602,-1427.37802868,0.00016983,2]
[393892135,1763073726625,-10000.01,0.00016983,2]
[393892136,1763073728220,9166.488783,7.945e-05,2]
[393892137,1763073738177,-300.0,0.00016982,2]
[393892138,1763073738218,-9400.01,0.00016983,2]
[393892139,1763073738313,-1720.9462123,0.00016983,2]
[393892140,1763073738343,-1259.36936865,0.00016983,2]
[393892141,1763073740598,-300.0,0.00016986,2]
[393892142,1763073740621,-32.07530258,0.00016986,2]
[393892143,1763073745350,-193.70507279,0.00016986,2]
[393892144,1763073749145,-74.21962463,0.00016986,2]
[393892145,1763073749178,-151.0,0.0001699,2]
[393892146,1763073749204,-24.78037537,0.0001699,2]
[393892147,1763073750684,-126.21962463,0.0001699,2]
[393892148,1763073750709,-134.3360429,0.0001699,2]
[393892149,1763073752764,-16.6639571,0.0001699,2]
[393892150,1763073752788,-151.0,0.0001699,2]
[393892151,1763073752811,-151.0,0.0001699,2]
[393892152,1763073752834,-151.0,0.0001699,2]
[393892153,1763073752857,-130.93606727,0.0001699,2]
[393892154,1763073756235,-20.06393273,0.0001699,2]
[393892155,1763073756259,-139.94287954,0.0001699,2]
[393892156,1763073760102,-11.05712046,0.0001699,2]
[393892157,1763073760126,-139.94287954,0.0001699,2]
[393892158,1763073762815,-11.05712046,0.0001699,2]
[393892159,1763073762838,-191.59030218,0.0001699,2]
[393892160,1763073766564,404.14898343,0.00016983,2]
[393892161,1763073784209,150.0,0.00016351,2]
[393892162,1763073787899,1899.955298,7.945e-05,2]
[393892165,1763073806930,1585.27455667,0.000169,2]
[393892166,1763073806953,10000.01,0.000169,2]
[393892167,1763073806977,8414.71544333,0.000169,2]
[393892168,1763073811552,1585.29455667,0.000169,2]
[393892169,1763073811579,3093.04834333,0.000169,2]
[393892170,1763073846377,1333.72,0.00016423,2]
[393892171,1763073862240,166.66,0.00015507,2]
[393892172,1763073862483,166.66,0.00015834,2]
[393892173,1763073862709,166.66,0.0001616,2]
[393892174,1763073862961,166.66,0.00016486,2]
[393892175,1763073863272,166.66,0.00016813,2]
[393892178,1763073907506,2033.56,0.00016303,2]
[393892179,1763073915088,-346.29090144,0.00016973,2]
[393892180,1763073915773,6755.67530882,0.00041051,120]
[393892181,1763073917230,-154.7607398,0.00016973,2]
[393892182,1763073917253,-210.56135377,0.00016973,2]
[393892183,1763073920404,-203.0254694,0.00016973,2]
[393892185,1763073923628,-86.41317683,0.00016973,2]
[393892186,1763073923652,-372.80062162,0.00016973,2]
[393892187,1763073927588,-127.19937838,0.00016973,2]
[393892188,1763073927613,-66.07182882,0.00016973,2]
[393892189,1763073929669,-166.66,0.00016973,2]
[393892193,1763073932886,-267.26817118,0.00016973,2]
[393892194,1763073932909,-32.73182882,0.00016983,2]
[393892195,1763073934909,-326.63948818,0.00016983,2]
[393892196,1763073938081,-323.02518741,0.00016983,2]
[393892197,1763073939665,-173.36051182,0.00016983,2]
[393892198,1763073942358,-221.77980403,0.00016983,2]
[393892199,1763073959523,200.0,0.0001658,2]
[393892200,1763073964965,-201.7718068,0.00016973,2]
[393892201,1763073966446,-298.2281932,0.00016973,2]
[393892202,1763073966467,-138.67679228,0.00016973,2]
[393892203,1763073968517,-178.89976496,0.00016973,2]
[393892204,1763073970007,-184.21305314,0.00016973,2]
[393892205,1763073970029,-149.45483151,0.00016973,2]
[393892206,1763073973265,-350.54516849,0.00016973,2]
[393892207,1763073973288,-21.11287422,0.00016983,2]
[393892208,1763073974503,150.0,0.000162,2]
[393892209,1763073974542,150.0,0.0001635,2]
[393892210,1763073974581,150.0,0.0001665,2]
[393892211,1763073974618,150.0,0.000165,2]
[393892212,1763073974720,150.0,0.0001695,2]
[393892213,1763073974754,150.0,0.000168,2]
[393892215,1763074016068,8900.01,0.00016894,2]
[393892216,1763074016093,3300.29751042,0.00016894,2]
[393892217,1763074016676,-3.29850308,0.00016983,2]
[393892218,1763074035906,166.66,0.00016842,2]
[393892219,1763074036706,1000.0,0.000169,2]
[393892221,1763074042675,250.0,0.00016381,2]
[393892224,1763074048625,1200.0,0.000169,6]
[393892225,1763074070150,-277.24129482,0.00016985,2]
[393892226,1763074070273,551.48,0.00016451,2]
[393892227,1763074072730,-187.11921967,0.00016985,2]
[393892228,1763074074314,-265.59127025,0.00016985,2]
[393892229,1763074077786,-153.51108972,0.00016985,2]
[393892230,1763074085081,-316.53712554,0.00016985,2]
[393892231,1763074085104,-56.98066177,0.00016985,2]
[393892232,1763074102007,363.73408515,0.00016906,2]
[393892233,1763074102571,9084.79591485,0.00016906,2]
[393892234,1763074102596,10000.01,0.00016906,2]
[393892235,1763074102622,1233.83622502,0.00016906,2]
[393892236,1763074104420,964.20467283,0.00016906,2]
[393892237,1763074126688,-891.41259542,0.00016981,2]
[393892238,1763074130643,-170.17901379,0.00016981,2]
[393892317,1763074191548,1938.1,0.00016263,2]
[393892319,1763074221376,-1681.02331709,0.00016981,2]
[393892320,1763074221414,-300.0,0.00016985,2]
[393892321,1763074221453,-1200.0,0.00016985,2]
[393892322,1763074221491,-300.0,0.00016985,2]
[393892323,1763074221530,-300.0,0.00016985,2]
[393892324,1763074221567,-212.88311499,0.00016986,2]
[393892329,1763074231578,-25551.83096963,0.00016986,2]
[393892331,1763074231589,-3952.73087519,0.00016986,2]
[393892337,1763074231664,-347.52454408,0.00016986,2]
[393892338,1763074231679,-266.39449734,0.00016986,2]
[393892339,1763074231768,-593.68559843,0.00016986,2]
[393892340,1763074231778,-29849.52897899,0.00016986,2]
[393892341,1763074231859,-60672.43453634,0.00016986,2]
[393892342,1763074231870,-300.0,0.00016987,2]
[393892343,1763074231879,-300.61809369,0.00016987,2]
[393892344,1763074231889,-550.289723,0.00016989,2]
[393892346,1763074231899,-500.0,0.00016989,2]
[393892347,1763074231909,-201.7718068,0.00016989,2]
[393892348,1763074231919,-500.0,0.00016989,2]
[393892349,1763074231929,-259.93017289,0.00016989,2]
[393892350,1763074231938,-500.0,0.00016989,2]
[393892352,1763074231949,-500.0,0.00016989,2]
[393892353,1763074231958,-500.0,0.00016989,2]
[393892354,1763074231968,-500.0,0.00016989,2]
[393892355,1763074231979,-500.0,0.00016989,2]
[393892356,1763074231989,-500.0,0.00016989,2]
[393892357,1763074231998,-500.0,0.00016989,2]
[393892358,1763074232007,-500.0,0.00016989,2]
[393892359,1763074232016,-500.0,0.00016989,2]
[393892360,1763074232026,-500.0,0.00016989,2]
[393892361,1763074232036,-500.0,0.00016989,2]
[393892362,1763074232045,-241.56174245,0.00016989,2]
[393892363,1763074232054,-500.0,0.00016989,2]
[393892364,1763074232063,-500.0,0.00016989,2]
[393892365,1763074232072,-500.0,0.00016989,2]
[393892366,1763074232081,-500.0,0.00016989,2]
[393892367,1763074232091,-500.0,0.00016989,2]
[393892368,1763074232100,-500.0,0.00016989,2]
[393892369,1763074232109,-500.0,0.00016989,2]
[393892370,1763074232118,-500.0,0.00016989,2]
[393892371,1763074232127,-500.0,0.00016989,2]
[393892372,1763074232136,-500.0,0.00016989,2]
[393892373,1763074232145,-500.0,0.00016989,2]
[393892374,1763074232154,-500.0,0.00016989,2]
[393892375,1763074232163,-500.0,0.00016989,2]
[393892376,1763074232173,-500.0,0.00016989,2]
[393892377,1763074232182,-500.0,0.00016989,2]
[393892378,1763074232191,-500.0,0.00016989,2]
[393892379,1763074232200,-500.0,0.00016989,2]
[393892380,1763074232209,-500.0,0.00016989,2]
[393892381,1763074232218,-500.0,0.00016989,2]
[393892382,1763074232228,-500.0,0.00016989,2]
[393892383,1763074232239,-250.0,0.00016989,2]
[393892384,1763074232248,-500.0,0.00016989,2]
[393892385,1763074232258,-500.0,0.00016989,2]
[393892386,1763074232268,-500.0,0.00016989,2]
[393892387,1763074232277,-500.0,0.00016989,2]
[393892388,1763074232287,-500.0,0.00016989,2]
[393892389,1763074232296,-500.0,0.00016989,2]
[393892390,1763074232306,-500.0,0.00016989,2]
[393892391,1763074232315,-500.0,0.00016989,2]
[393892392,1763074232324,-500.0,0.00016989,2]
[393892393,1763074232334,-225.83879901,0.00016989,2]
[393892394,1763074232343,-403.8465035,0.00016989,2]
[393892395,1763074232352,-127602.17177823,0.0001699,3]
[393892396,1763074232361,-1562.11839789,0.00016999,2]
[393892397,1763074232370,-500.0,0.00016999,2]
[393892398,1763074232379,-500.0,0.00016999,2]
[393892399,1763074232389,-500.0,0.00016999,2]
[393892400,1763074232398,-500.0,0.00016999,2]
[393892401,1763074232407,-500.0,0.00016999,2]
[393892402,1763074232416,-500.0,0.00016999,2]
[393892403,1763074232425,-500.0,0.00016999,2]
[393892404,1763074232435,-500.0,0.00016999,2]
[393892405,1763074232444,-500.0,0.00016999,2]
[393892406,1763074232452,-500.0,0.00016999,2]
[393892407,1763074232462,-500.0,0.00016999,2]
[393892408,1763074232471,-567.08701969,0.00016999,2]
[393892409,1763074232480,-500.0,0.00016999,2]
[393892410,1763074232488,-500.0,0.00016999,2]
[393892411,1763074232498,-500.0,0.00016999,2]
[393892412,1763074232507,-561.46292857,0.00016999,2]
[393892413,1763074232516,-500.0,0.00016999,2]
[393892414,1763074232525,-500.0,0.00016999,2]
[393892416,1763074232534,-641.929974,0.00016999,2]
[393892417,1763074232543,-505.31022957,0.00016999,2]
[393892418,1763074232553,-500.0,0.00016999,2]
[393892419,1763074232562,-395.86495349,0.00016999,2]
[393892420,1763074232571,-610.85931884,0.00016999,2]
[393892421,1763074232579,-500.0,0.00016999,2]
[393892422,1763074232588,-500.0,0.00016999,2]
[393892423,1763074232597,-226.02686193,0.00016999,2]
[393892424,1763074232606,-500.0,0.00016999,2]
[393892425,1763074232615,-25525.40177714,0.00017,2]
[393892442,1763074237644,-394474.59822286,0.00017,2]
[393892443,1763074237654,-12200.30751035,0.00017006,2]
[393892444,1763074237663,-363.73408508,0.00017016,2]
[393892445,1763074237673,-20318.64213984,0.00017016,2]
[393892446,1763074237682,-964.20467282,0.00017048,2]
[393892447,1763074237691,-1852.42,0.0001709,2]
[393892448,1763074237700,-150.0,0.000171,2]
[393892449,1763074237710,-12200.30751035,0.00017118,2]
[393892450,1763074237722,-363.73408508,0.00017127,2]
[393892451,1763074237733,-20318.64213984,0.00017127,2]
[393892452,1763074237742,-166.66,0.00017139,2]
[393892453,1763074237751,-221.0,0.00017179,2]
[393892454,1763074237762,-200.0,0.00017179,2]
[393892455,1763074237771,-500.0,0.00017183,2]
[393892456,1763074237780,-500.0,0.00017183,2]
[393892457,1763074237791,-500.0,0.00017183,2]
[393892458,1763074237802,-1000.0,0.00017184,2]
[393892459,1763074237812,-9813.1114,0.00017184,2]
[393892460,1763074237822,-964.20467282,0.0001719,2]
[393892461,1763074237831,-2500.0,0.000172,6]
[393892462,1763074237840,-12200.30751035,0.00017229,2]
[393892463,1763074237849,-363.73408508,0.00017237,2]
[393892464,1763074237858,-20318.64213984,0.00017237,2]
[393892465,1763074237868,-150.0,0.0001725,2]
[393892466,1763074237877,-430.02161934,0.00017283,2]
[393892467,1763074237887,-3800.0,0.000173,6]
[393892468,1763074237896,-964.20467282,0.00017332,2]
[393892469,1763074237906,-12200.30751035,0.00017341,2]
[393892470,1763074237914,-363.73408508,0.00017348,2]
[393892471,1763074237924,-20318.64213984,0.00017348,2]
[393892472,1763074237937,-151.0,0.00017367,2]
[393892473,1763074237946,-151.0,0.00017374,2]
[393892474,1763074237955,-151.0,0.00017378,2]
[393892475,1763074237964,-443.73507614,0.00017389,2]
[393892476,1763074237974,-500.0,0.00017389,2]
[393892477,1763074237983,-500.0,0.00017389,2]
[393892478,1763074237991,-500.0,0.00017389,2]
[393892479,1763074238001,-500.0,0.00017389,2]
[393892480,1763074238010,-500.0,0.00017389,2]
[393892481,1763074238020,-166.66,0.00017398,2]
[393892482,1763074238030,-150.0,0.000174,2]
[393892484,1763074238042,-5100.0,0.000174,6]
[393892487,1763074238052,-12200.30751035,0.00017453,2]
[393892489,1763074238061,-363.73408508,0.00017458,2]
[393892491,1763074238070,-20318.64213984,0.00017458,2]
[393892492,1763074238079,-964.20467282,0.00017474,2]
[393892493,1763074238089,-6300.0,0.000175,6]
[393892494,1763074238102,-500.0,0.00017521,2]
[393892495,1763074238112,-150.0,0.0001755,2]
[393892496,1763074238122,-12200.30751035,0.00017565,2]
[393892497,1763074238132,-363.73408508,0.00017569,2]
[393892498,1763074238142,-20318.64213984,0.00017569,2]
[393892499,1763074238152,-1980.65857156,0.000176,2]
[393892500,1763074238162,-1200.0,0.000176,6]
[393892501,1763074238171,-964.20467282,0.00017616,2]
[393892502,1763074238181,-1980.65857156,0.0001765,2]
[393892503,1763074238190,-1706.16419399,0.00017663,2]
[393892504,1763074238200,-12200.30751035,0.00017676,2]
[393892505,1763074238210,-363.73408508,0.00017679,2]
[393892506,1763074238220,-20318.64213984,0.00017679,2]
[393892507,1763074238231,-150.0,0.000177,2]
[393892508,1763074238241,-8324.85212007,0.000177,2]
[393892509,1763074238251,-1200.0,0.000177,6]
[393892510,1763074238261,-2033.00515604,0.000177,2]
[393892511,1763074238271,-1980.65857156,0.000177,2]
[393892512,1763074238281,-9999.99,0.00017728,2]
[393892513,1763074238292,-26731.32,0.00017728,2]
[393892514,1763074238302,-1980.65857156,0.0001775,2]
[393892515,1763074238312,-964.20467282,0.00017758,2]
[393892516,1763074238322,-12200.30751035,0.00017788,2]
[393892517,1763074238332,-363.73408508,0.0001779,2]
[393892518,1763074238342,-20318.64213984,0.0001779,2]
[393892519,1763074238352,-1200.0,0.000178,6]
[393892520,1763074238362,-150.0,0.00017817,2]
[393892521,1763074238372,-150.0,0.00017819,2]
[393892522,1763074238381,-2154.590153,0.00017828,2]
[393892523,1763074238392,-9037.7291073,0.00017828,2]
[393892524,1763074238402,-500.0,0.00017849,2]
[393892525,1763074238411,-402.24008145,0.00017849,2]
[393892526,1763074238421,-500.0,0.00017849,2]
[393892527,1763074238430,-500.0,0.00017849,2]
[393892528,1763074238440,-500.0,0.00017849,2]
[393892529,1763074238450,-150.0,0.0001785,2]
[393892530,1763074238460,-2500.0,0.000179,3]
[393892531,1763074238469,-2500.0,0.000179,3]
[393892532,1763074238479,-12200.30751035,0.000179,2]
[393892533,1763074238489,-1200.0,0.000179,6]
[393892534,1763074238498,-2033.00515604,0.000179,2]
[393892535,1763074238508,-964.20467282,0.000179,2]
[393892536,1763074238518,-363.73408508,0.000179,2]
[393892537,1763074238527,-20318.64213984,0.000179,2]
[393892538,1763074238536,-687.17474164,0.000179,2]
[393892539,1763074238547,-8202.53263112,0.000179,2]
[393892540,1763074238556,-3708.84813148,0.000179,2]
[393892541,1763074238565,-680.32663372,0.000179,3]